[Event "Lliga Catalana DH 2023"]
[Site "Catalonia"]
[Date "2023.01.21"]
[Round "1.9"]
[White "Garcia Marin, Guillem"]
[Black "Fernandez Climent, Albert"]
[Result "0-1"]
[ECO "D11"]
[WhiteElo "2038"]
[BlackElo "1959"]
[Annotator "TA"]
[PlyCount "140"]
[EventDate "2023.01.24"]
[EventType "team-tourn"]
[EventCountry "ESP"]
[SourceTitle "playchess.com"]
[Source "ChessBase"]
[SourceQuality "1"]
[TimeControl "40/5400+30:1800+30"]

{[%evp 16,140,-4,0,0,0,-8,-7,8,-4,0,-7,0,0,-1,-35,-28,-38,-32,-24,-22,-43,-43,-43,-16,-23,-9,-13,-10,-12,-10,-22,-22,-66,-59,-129,-129,-130,-125,-124,-39,-39,-39,-39,-39,-91,-72,-72,-70,-180,-175,-262,-170,-169,-175,-180,-100,-100,-100,-100,-100,-100,-100,-100,-100,-143,-100,-100,-100,-100,-100,-100,-100,-100,-100,-100,-100,-100,-100,-100,-100,-100,-75,-100,-100,-100,-100,-29968,-29968,-29968,-29967,-5097,-100,-100,-100,-29976,-29977,-29977,-29978,-29978,-29979,-29979,-29980,-29980,-29981,-29981,-29982,-29985,-29986,-29986,-29987,-29987,-29988,-29988,-29989,-29989,-29988,-29988,-29987,-29988,-29987,-29987,-29988,-29990,-29988,-29992,-29993]} 1. d4 {[%emt 0:00:05]} Nf6 {[%emt 0:00:29]} 2. Nf3 {[%emt 0:00:24]} d5 {[%emt 0:00:07]} 3. g3 {[%emt 0:00:21]} c6 {[%emt 0:00:55]} 4. Bg2 {[%emt 0:00:47]} h6 {[%emt 0:00:19]} 5. O-O {[%emt 0:00:57]} Bf5 {[%emt 0:00:03]} 6. c4 {[%emt 0:00:52]} e6 {[%emt 0:00:08]} 7. Nc3 {[%emt 0:00:40]} Nbd7 {[%emt 0:00:03]} 8. Qb3 {[%emt 0:00:55]} Qb6 {[%emt 0:00:06]} 9. c5 {[%emt 0:01:03]} Qxb3 {[%emt 0:00:05] D11: Slav Defence: 3 Nf3 sidelines and 3...Nf6 4 e3 Bg4.} 10. axb3 {[%emt 0:00:06]} a6 {[%emt 0:02:02]} 11. b4 {[%emt 0:01:53][%cal Ob4b5]} Rc8 {[%emt 0:00:11] The position is equal.} 12. h3 {[%emt 0:02:29]} Be7 {[%emt 0:03:42]} 13. g4 {[%emt 0:01:55] [#]} Be4 $146 {[%emt 0:02:15]} ({Predecessor:} 13... Bh7 14. Bf4 Bd8 15. Nd2 g5 16. Bg3 h5 17. Bf3 Bc7 18. Bxc7 Rxc7 19. b5 hxg4 20. hxg4 {1-0 Mikhailov,V (2428)-Jobava,B (2585) Titled Tuesday intern op 30th Aug Late blitz 2022 (3)}) 14. Bf4 {[%emt 0:05:40]} g5 {[%emt 0:02:47]} 15. Bh2 {[%emt 0:03:47]} h5 {[%emt 0:04:06]} 16. Nxe4 {[%emt 0:07:21]} Nxe4 {[%emt 0:00:26]} 17. Ne5 {[%emt 0:06:39]} Nxe5 {[%emt 0:00:51]} 18. dxe5 {[%emt 0:05:26]} hxg4 {[%emt 0:01:07]} 19. hxg4 {[%emt 0:03:11]} Rh4 {[%emt 0:00:31]} 20. e3 {[%emt 0:06:41]} Kd7 {[%emt 0:03:14] ...Rch8 would be deadly.} (20... Rxg4 21. f3 Rxg2+ 22. Kxg2 $16) (20... Nd2 $5 21. Rfd1 $8 Nc4 $11) 21. f3 {[%emt 0:03:04]} (21. Bxe4 {simplifies} dxe4 22. Bg3 Rhh8 23. Rad1+) 21... Rch8 {[%emt 0:08:57] Hoping for ...Nxc5.} 22. fxe4 {[%emt 0:01:19] Black must now prevent Bg3.} Rxh2 {[%emt 0:00:07]} 23. Rxf7 {[%emt 0:00:37]} R2h4 {[%emt 0:00:53]} 24. exd5 {[%emt 0:02:24]} exd5 {[%emt 0:00:07]} 25. e4 {[%emt 0:03:18]} ({Better is} 25. Bf3 $15) 25... dxe4 $1 $17 {[%emt 0:06:14]} (25... Rxg4 $6 26. exd5 cxd5 27. Rg7 $11) 26. Re1 {[%emt 0:14:15]} Rxg4 {[%emt 0:05:37]} 27. Rxe4 {[%emt 0:00:51] [#]} Rxe4 {[%emt 0:00:17]} (27... Rhh4 $1 $17 28. e6+ Ke8 29. Rxg4 Rxg4) 28. Bxe4 {[%emt 0:00:06][%mdl 4096] Endgame KRB-KRB} Ke6 {[%emt 0:00:27][%csl LRe5,LRf7]} 29. Rg7 {[%emt 0:04:29]} Rh4 {[%emt 0:04:57]} 30. Bb1 {[%emt 0:07:18]} ({White should try} 30. Bg2 $1 $15) 30... Rxb4 {[%emt 0:02:39]} 31. Ba2+ {[%emt 0:00:13]} Kd7 $1 {[%emt 0:00:27]} (31... Kxe5 32. Rxe7+ Kd4 33. Re2 $11) 32. e6+ {[%emt 0:03:54] [#]} (32. Bb1 $15) 32... Ke8 $1 $19 {[%emt 0:00:15]} (32... Kd8 33. Rg8+ Kc7 34. Rg7 Rg4+ 35. Kh2 $11) 33. Rg8+ {[%emt 0:02:41]} Bf8 {[%emt 0:00:04]} 34. b3 {[%emt 0:04:17]} Rb5 {[%emt 0:01:32]} 35. Rxg5 {[%emt 0:03:55]} Rxc5 {[%emt 0:00:41]} (35... Bxc5+ 36. Kg2) (35... Ra5 $19 36. Rg2 Rxc5) 36. Rxc5 $17 {[%emt 0:02:14]} Bxc5+ $19 {[%emt 0:00:05] KB-KB} 37. Kf1 {[%emt 0:00:06]} Bb4 {[%emt 0:00:04]} 38. Ke2 {[%emt 0:00:16]} Ke7 {[%emt 0:00:03]} 39. Kd3 {[%emt 0:00:09]} Kxe6 {[%emt 0:00:05]} 40. Kc4 {[%emt 0:00:00]} a5 {[%emt 0:00:00]} 41. Bb1 {[%emt 0:00:47]} Ke5 {[%emt 0:30:38]} 42. Bg6 {[%emt 0:30:04]} b5+ {[%emt 0:00:15]} 43. Kd3 {[%emt 0:00:18]} Kd5 {[%emt 0:00:12]} 44. Be8 {[%emt 0:00:18]} Bf8 {[%emt 0:01:01]} 45. Bd7 {[%emt 0:00:33]} Bg7 {[%emt 0:00:50]} 46. Be8 {[%emt 0:00:07]} Kc5 {[%emt 0:02:55]} 47. Bd7 {[%emt 0:00:46]} Kb6 {[%emt 0:00:06]} 48. Be8 {[%emt 0:00:10]} c5 {[%emt 0:00:16][%cal Bc6c5,Bc5c4][%mdl 32]} 49. Bd7 {[%emt 0:00:15] [#]} a4 $1 {[%emt 0:00:33][%mdl 64] Deflection} 50. bxa4 {[%emt 0:00:21]} c4+ {[%emt 0:00:06]} 51. Kd2 $2 {[%emt 0:01:07][%mdl 8192]} (51. Ke2 $17) 51... b4 {[%emt 0:00:51][%cal Bb5b4,Bb4b3][%mdl 32]} 52. Be6 {[%emt 0:01:09]} Kc5 {[%emt 0:01:10]} 53. a5 {[%emt 0:00:10]} Bc3+ $2 {[%emt 0:00:03]} (53... b3 $19 {( -> ...c3+)} 54. Kd1 Bd4) 54. Kc1 $17 {[%emt 0:00:25]} Kb5 {[%emt 0:01:33]} 55. Kb1 $2 {[%emt 0:00:58][%mdl 8192]} (55. a6 $17 Bd4 56. Kd2) 55... b3 {[%emt 0:00:28] Black mates.} ({Not} 55... Kxa5 56. Bxc4 Bh8 57. Bg8 $11) 56. a6 {[%emt 0:00:11]} Bd4 {[%emt 0:00:08]} ({And not} 56... Kxa6 57. Bxc4+ Kb7 58. Bxb3 $11) 57. Bf7 {[%emt 0:00:50]} Kb4 {[%emt 0:00:11]} ({Stronger than} 57... Kxa6 58. Bxc4+ Kb7 59. Bxb3 $11) 58. Be6 {[%emt 0:00:28]} c3 {[%emt 0:00:05]} 59. Bf5 {[%emt 0:01:25]} Be3 {[%emt 0:01:13]} 60. Bd3 {[%emt 0:00:18]} Ka5 {[%emt 0:00:17]} 61. Bf5 {[%emt 0:01:16]} Kxa6 {[%emt 0:00:04]} 62. Bg6 {[%emt 0:00:29]} Kb6 {[%emt 0:00:03]} 63. Bf5 {[%emt 0:00:09]} Kc5 {[%emt 0:00:05]} 64. Bg6 {[%emt 0:00:19]} Kd4 {[%emt 0:00:11]} 65. Bf5 {[%emt 0:00:08]} Ke5 {[%emt 0:00:56]} 66. Bg6 {[%emt 0:00:55]} Kf4 {[%emt 0:00:11]} 67. Bd3 {[%emt 0:00:28]} Kg3 {[%emt 0:00:08]} 68. Be4 {[%emt 0:00:30]} Kf2 {[%emt 0:00:06]} 69. Bf5 {[%emt 0:01:25]} Ke1 {[%emt 0:00:05]} 70. Be4 {[%emt 0:00:11]} Kd2 {[%emt 0:00:29] Weighted Error Value: White=0.32/Black=0.21 (precise)} 0-1

[Event "Lliga Catalana DH 2023"]
[Site "Catalonia"]
[Date "2023.01.21"]
[Round "1.10"]
[White "Martinez Talavera, Jordi"]
[Black "Lasanta Rica, Cesar"]
[Result "1-0"]
[ECO "D02"]
[WhiteElo "1950"]
[BlackElo "2147"]
[Annotator "TA"]
[PlyCount "61"]
[EventDate "2023.01.24"]
[EventType "team-tourn"]
[EventCountry "ESP"]
[SourceTitle "playchess.com"]
[Source "ChessBase"]
[SourceQuality "1"]
[TimeControl "40/5400+30:1800+30"]

{[%evp 11,61,-3,6,7,15,17,10,2,20,0,-11,-33,17,24,25,0,18,22,22,0,29,12,25,-16,-10,-43,-32,-48,0,-237,-241,-235,-217,-300,-280,-362,-345,-406,-393,-385,-298,-271,-284,-371,-354,-363,-350,-343,-319,-410,171,171]} 1. d4 d5 2. Bf4 Nf6 3. e3 e6 4. Nf3 c5 5. c3 Nc6 6. Nbd2 cxd4 {is currently scoring better than 6...Bd6.} 7. exd4 {D02: 1 d4 d5 2 Nf3 sidelines, including 2...Nf6 3 g3 and 2...Nf6 3 Bf4.} Nh5 8. Be3 Bd6 {[#] Dodges Ne5} 9. Ne5 $1 {The position is equal.} g6 10. Bb5 Qc7 11. Qa4 {[%cal Re5c6]} Bd7 (11... O-O $15) 12. Nxd7 $11 Qxd7 {[#]} 13. c4 $146 ({Predecessor:} 13. Nf3 f6 14. O-O O-O 15. Rad1 a6 16. Bd3 Rad8 17. c4 Nxd4 18. Qxd7 Nxf3+ 19. gxf3 Rxd7 20. cxd5 exd5 {0-1 Batchuluun,A (2067)-Lim,Z (2217) Belt and Road Hunan op-B 2019 (9)}) 13... Rc8 14. c5 Bb8 15. g3 f6 16. f4 O-O 17. Be2 Ng7 18. O-O Nf5 19. Bf2 e5 (19... Rcd8 $15) 20. g4 $2 (20. dxe5 $11 {and White has nothing to worry.} fxe5 21. fxe5) 20... Nfxd4 $19 21. Bxd4 exd4 22. Nb3 Rce8 23. Rae1 Re4 24. Bd1 Rfe8 ({Weaker is} 24... Bxf4 25. Rxe4 Bxh2+ 26. Kxh2 $17) 25. Rxe4 Rxe4 26. Nd2 Rxf4 27. Rxf4 Bxf4 28. Nf1 Qe7 29. Bf3 Qxc5 {...d3+ would be deadly.} 30. Kg2 {[#]} d3 $4 {[%mdl 8192]} 31. Qxf4 {Weighted Error Value: White=0.43/Black=0.45} 1-0

[Event "Lliga Catalana DH 2023"]
[Site "Catalonia"]
[Date "2023.01.21"]
[Round "1.10"]
[White "Pinyol i Llora, Julia"]
[Black "Lambert Pont, James"]
[Result "1-0"]
[ECO "E01"]
[WhiteElo "1795"]
[BlackElo "1750"]
[Annotator "NA RC COMBH"]
[PlyCount "128"]
[EventDate "2023.01.24"]
[EventType "team-tourn"]
[EventCountry "ESP"]
[SourceTitle "playchess.com"]
[Source "ChessBase"]
[SourceQuality "1"]
[TimeControl "40/5400+30:1800+30"]

1. d4 {[%emt 0:09:07]} d5 {[%emt 0:00:17]} 2. c4 {[%emt 0:00:08]} e6 {[%emt 0:00:12]} 3. Nf3 {[%emt 0:00:05]} Nf6 {[%emt 0:00:09]} 4. g3 {[%emt 0:00:03]} c6 {[%emt 0:00:32]} 5. Bg2 {[%emt 0:00:43]} Bd6 {[%emt 0:00:52]} 6. O-O {[%emt 0:00:16]} O-O {[%emt 0:00:27]} 7. Qc2 {[%emt 0:01:20]} h6 {[%emt 0:01:38]} 8. Nbd2 {[%emt 0:01:42]} Re8 {[%emt 0:02:05]} 9. e4 {[%emt 0:01:49]} dxe4 {[%emt 0:07:56]} 10. Nxe4 {[%emt 0:00:15]} Nxe4 {[%emt 0:01:30]} 11. Qxe4 {[%emt 0:00:20]} Nd7 {[%emt 0:00:20]} 12. Bf4 {[%emt 0:08:28]} Nf6 {[%emt 0:21:29]} 13. Qe3 {[%emt 0:03:06]} Bxf4 {[%emt 0:05:46]} 14. Qxf4 {[%emt 0:00:58]} Qb6 {[%emt 0:01:34]} 15. b3 {[%emt 0:04:14]} c5 {[%emt 0:05:16]} 16. dxc5 {[%emt 0:04:48]} Qxc5 {[%emt 0:00:21]} 17. Ne5 {[%emt 0:02:23]} Re7 {[%emt 0:05:32]} 18. Rad1 {[%emt 0:03:13]} Qb6 {[%emt 0:00:38]} 19. Qd4 {[%emt 0:06:40]} Nd7 {[%emt 0:05:37]} 20. Nxd7 {[%emt 0:09:05]} Rxd7 {[%emt 0:00:09]} 21. Qxb6 {[%emt 0:04:39]} axb6 {[%emt 0:00:17]} 22. a4 {[%emt 0:00:17]} Rxd1 {[%emt 0:02:33]} 23. Rxd1 {[%emt 0:00:03]} Kf8 {[%emt 0:00:00]} 24. Rd6 {[%emt 0:01:12]} Ke7 {[%emt 0:03:13]} 25. Rxb6 {[%emt 0:01:25]} Kd8 {[%emt 0:00:39]} 26. c5 {[%emt 0:04:25]} Kc7 {[%emt 0:01:24]} 27. f4 {[%emt 0:03:21]} Ra5 {[%emt 0:05:10]} 28. Rb5 {[%emt 0:00:04]} Rxb5 {[%emt 0:00:13]} 29. axb5 {[%emt 0:00:05]} b6 {[%emt 0:00:11]} 30. b4 {[%emt 0:00:31]} Bd7 {[%emt 0:02:22]} 31. Bf1 {[%emt 0:00:13]} Be8 {[%emt 0:06:16]} 32. Kf2 {[%emt 0:01:39]} Bd7 {[%emt 0:00:51]} 33. Ke3 {[%emt 0:01:05]} Bc8 {[%emt 0:00:31]} 34. Kd4 {[%emt 0:02:02]} Bb7 {[%emt 0:00:51]} 35. Ke5 {[%emt 0:01:10]} Bd5 {[%emt 0:08:51]} 36. cxb6+ {[%emt 0:04:10]} Kxb6 {[%emt 0:00:01]} 37. Kd6 {[%emt 0:00:06]} g5 {[%emt 0:02:16]} 38. f5 {[%emt 0:00:36]} g4 {[%emt 0:03:40]} 39. Ke5 {[%emt 0:03:45]} Bb3 {[%emt 0:06:30]} 40. Bd3 {[%emt 0:01:51]} exf5 {[%emt 0:01:48]} 41. Kxf5 {[%emt 0:30:08]} Be6+ {[%emt 0:30:30]} 42. Kf6 {[%emt 0:00:21]} Kc7 {[%emt 0:00:31]} 43. Kg7 {[%emt 0:00:42]} h5 {[%emt 0:00:01]} 44. Kh6 {[%emt 0:00:05]} Bd5 {[%emt 0:00:58]} 45. Kxh5 {[%emt 0:00:44]} Bf3 {[%emt 0:00:14]} 46. Kg5 {[%emt 0:01:57]} Kb6 {[%emt 0:00:34]} 47. Bc4 {[%emt 0:00:45]} Bd1 {[%emt 0:00:38]} 48. Kf6 {[%emt 0:00:12]} Bf3 {[%emt 0:00:07]} 49. Kxf7 {[%emt 0:00:40]} Kc7 {[%emt 0:00:47]} 50. Kf6 {[%emt 0:01:52]} Kd6 {[%emt 0:00:38]} 51. Bf7 {[%emt 0:01:25]} Be2 {[%emt 0:00:25]} 52. Be8 {[%emt 0:00:18]} Kc7 {[%emt 0:00:36]} 53. Kg5 {[%emt 0:00:57]} Kb6 {[%emt 0:00:30]} 54. Bd7 {[%emt 0:00:09]} Kc7 {[%emt 0:00:24]} 55. Bxg4 {[%emt 0:00:13]} Bxb5 {[%emt 0:00:05]} 56. h4 {[%emt 0:00:26]} Kd8 {[%emt 0:00:32]} 57. Kf6 {[%emt 0:00:15]} Ke8 {[%emt 0:00:52]} 58. Kg7 {[%emt 0:00:05]} Ke7 {[%emt 0:00:38]} 59. h5 {[%emt 0:00:14]} Kd6 {[%emt 0:00:31]} 60. Bf5 {[%emt 0:00:12]} Ke5 {[%emt 0:00:21]} 61. Bb1 {[%emt 0:00:14]} Kd4 {[%emt 0:00:39]} 62. h6 {[%emt 0:00:05]} Kc4 {[%emt 0:00:01]} 63. h7 {[%emt 0:00:10]} Kb3 {[%emt 0:00:16]} 64. h8=Q {[%emt 0:00:13]} Ka3 {[%emt 0:00:31]} 1-0

[Event "Lliga Catalana DH 2023"]
[Site "Catalonia"]
[Date "2023.01.24"]
[Round "2.1"]
[White "Solodovnichenko, Yuri"]
[Black "Aroshidze, Levan"]
[Result "1/2-1/2"]
[ECO "B42"]
[WhiteElo "2514"]
[BlackElo "2535"]
[Annotator "TA"]
[PlyCount "76"]
[EventDate "2023.01.24"]
[EventType "team-tourn"]
[EventCountry "ESP"]
[SourceTitle "playchess.com"]
[Source "ChessBase"]
[SourceQuality "1"]
[TimeControl "40/5400+30:1800+30"]

{[%evp 20,76,45,35,28,28,39,0,0,0,0,0,0,0,0,-26,-25,-28,0,0,10,-20,0,0,0,0,0,0,0,0,0,0,-2,-4,0,0,33,33,39,0,0,0,49,55,57,51,222,0,0,0,6,7,7,7,31,20,22,0,0]} 1. e4 {[%emt 0:01:39]} c5 {[%emt 0:00:08]} 2. Nf3 {[%emt 0:00:12]} e6 {[%emt 0:00:16]} 3. d4 {[%emt 0:00:10]} cxd4 {[%emt 0:00:08]} 4. Nxd4 {[%emt 0:00:05]} a6 {[%emt 0:00:08]} 5. Bd3 {[%emt 0:00:51]} Nf6 {[%emt 0:00:21]} 6. O-O {[%emt 0:00:09]} Qc7 {[%emt 0:00:06]} 7. Qe2 {[%emt 0:00:19]} d6 {[%emt 0:00:07]} 8. c4 {[%emt 0:00:06]} Be7 {[%emt 0:00:08]} 9. Nc3 {[%emt 0:00:30]} O-O {[%emt 0:00:09]} 10. f4 {[%emt 0:01:54]} Nbd7 {[%emt 0:00:43]} 11. Be3 $1 {[%emt 0:09:07][%mdl 4] outshines the older 11.Kh1.} Nc5 {[%emt 0:04:20] B42: Sicilian: Kan Variation: 5 Bd3.} 12. Bc2 {[%emt 0:00:32] aiming for g4.} e5 {[%emt 0:00:15]} 13. Nf5 {[%emt 0:04:54]} Bxf5 {[%emt 0:00:53]} 14. exf5 {[%emt 0:00:22]} exf4 {[%emt 0:00:50] [#]} 15. Bd4 $146 {[%emt 0:07:53][%cal Oa1d1]} ({Predecessor:} 15. Rxf4 Rfe8 16. Qf2 Ncd7 17. Bd4 d5 18. Nxd5 Nxd5 19. cxd5 Nf6 20. Bb3 Bd6 21. Rh4 Re4 22. Bb6 Qc8 23. Rxe4 Nxe4 24. Qd4 Qxf5 25. Bc2 Re8 26. Re1 {½-½ Sorokin,M (2147)-Gierden,H (2287) EU-ch 2016 pr22 email}) 15... Rfe8 {[%emt 0:13:07]} 16. Qf3 {[%emt 0:02:02]} Ncd7 {[%emt 0:17:22]} 17. Qxf4 {[%emt 0:13:58]} Qxc4 {[%emt 0:06:25]} 18. Bb3 {[%emt 0:01:24] A strong pair of Bishops.} Qb4 {[%emt 0:00:57]} 19. Rad1 {[%emt 0:03:11] Strongly threatening g4.} Ne5 {[%emt 0:21:33]} 20. Qg3 {[%emt 0:02:13]} Bd8 {[%emt 0:03:35]} (20... Rac8 $5) 21. Kh1 {[%emt 0:10:13]} Bb6 {[%emt 0:02:22]} 22. Nd5 {[%emt 0:00:41]} Nxd5 {[%emt 0:01:51]} 23. Bxe5 {[%emt 0:02:04]} Rxe5 {[%emt 0:03:15]} (23... dxe5 24. Rxd5 Rad8 25. Rxe5 $14) 24. Bxd5 {[%emt 0:00:52]} Be3 {[%emt 0:12:16]} (24... Qxb2 $2 25. f6 g5 26. Bxf7+ Kxf7 27. Qh3 $18 (27. Rxd6 Qe2 $11)) 25. f6 {[%emt 0:17:50][%csl Gf6][%cal Rg3g7] [#]} (25. a3 Qb5 $15) 25... g6 {[%emt 0:00:31]} (25... Qxb2 $2 26. Qxg7#) 26. Qh3 $132 {[%emt 0:11:18][%cal Od5f7][%mdl 2048] White wants to mate with Bxf7+! White is not keeping still} Rf8 {[%emt 0:00:45]} (26... Qxb2 27. Bxf7+ Kh8 28. Bxg6 (28. Rxd6 Qe2 $18) 28... h6 29. Qd7) 27. Qd7 {[%emt 0:00:13]} Qb5 {[%emt 0:07:06]} 28. Qxd6 {[%emt 0:00:36]} Ree8 {[%emt 0:01:44][%cal Be5e8,Be8d8,Bd8d7,Bd7d6,Bd6f6][%mdl 32]} 29. Qc7 {[%emt 0:03:27]} Qxb2 {[%emt 0:01:01]} 30. Bb3 {[%emt 0:01:18]} Bd4 {[%emt 0:01:17]} (30... Bg5 $11) 31. Qd7 $14 {[%emt 0:02:34]} Rd8 $1 {[%emt 0:00:24]} (31... Re4 $2 32. Bd5 (32. Qxb7 Ree8 $16) 32... Rh4 33. Bxf7+ Rxf7 34. Qd8+ Rf8 35. f7+ Kg7 36. Qxh4 $18) 32. Qe7 {[%emt 0:00:41][%cal Ob3f7] White threatens Bxf7+! and mate. Dancing on a razor blade.} Kh8 $2 {[%emt 0:00:41] [#]} ({Black should try} 32... Rc8 $14) 33. Rb1 $2 {[%emt 0:01:18]} ({White must play} 33. Rf4 $1 $18 {[%cal Rf4d4] Hoping for Rfxd4!} Bxf6 34. Rxf6 Rxd1+ 35. Bxd1) 33... Qd2 $11 {[%emt 0:01:15]} 34. Bxf7 {[%emt 0:00:16][%cal Of7e8] And now Be8! would win.} Bc5 {[%emt 0:00:51][%mdl 64] Deflection} 35. Qxb7 {[%emt 0:02:18][%cal Of7d5] Bd5! is the strong threat.} Rd7 {[%emt 0:00:11] Prevents Bd5} 36. Qc6 {[%emt 0:00:07] Black must now prevent Be6.} (36. Qxa6 $2 {perishes.} Rdxf7 37. Qc4 Qd4 38. Qxd4 Bxd4 $19) 36... Qd6 {[%emt 0:00:44] Repels Be6} 37. Qxd6 {[%emt 0:00:28]} Rxd6 {[%emt 0:00:01]} 38. Bc4 {[%emt 0:01:03]} Rdxf6 {[%emt 0:00:09] An interesting game.   Weighted Error Value: White=0.13 (very precise) /Black=0.18 (very precise)} 1/2-1/2

[Event "Lliga Catalana DH 2023"]
[Site "Catalonia"]
[Date "2023.01.28"]
[Round "2.1"]
[White "Jerez Perez, Alfonso"]
[Black "Alsina Leal, Daniel"]
[Result "1-0"]
[ECO "B22"]
[WhiteElo "2338"]
[BlackElo "2520"]
[Annotator "TA"]
[PlyCount "76"]
[EventDate "2023.01.24"]
[EventType "team-tourn"]
[EventCountry "ESP"]
[SourceTitle "playchess.com"]
[Source "ChessBase"]
[SourceQuality "1"]
[TimeControl "40/5400+30:1800+30"]

{[%evp 9,76,25,22,18,28,23,28,9,19,0,0,0,0,0,0,0,0,-20,-24,-31,0,-45,-24,-27,28,26,40,36,46,25,23,21,44,34,60,58,45,62,58,43,74,74,74,74,74,74,74,74,76,74,99,87,95,84,235,225,227,232,226,231,316,304,431,436,386,228,407,425,400]} 1. e4 c5 2. c3 e5 3. Nf3 Nc6 4. Bc4 Nf6 5. d3 Be7 6. O-O {B22: Sicilian: 2 c3.} O-O 7. Re1 d6 8. Nbd2 {White has an edge.} Na5 9. Nf1 Nxc4 10. dxc4 Be6 11. b3 {[%cal Bb2b3,Bb3c4,Bc4d5][%mdl 32] [#]} a6 $146 ({Predecessor:} 11... h6 12. Qc2 Qc7 13. Ne3 Rfd8 14. Nh4 Ng4 15. Nhf5 Nxe3 16. Nxe3 Bf8 17. Nd5 Qd7 {1-0 Pridal,O (2171)-Sanak,F (2014) CZE-chT2e 0607 2006 (8.3)}) 12. a4 b5 13. Qd3 bxc4 14. bxc4 Rb8 15. Ne3 Nd7 16. Nd5 Bxd5 ({Black should play} 16... Nb6) 17. cxd5 $11 c4 18. Qxc4 Qa5 19. Qe2 Rfc8 20. Be3 Nf6 21. Bd2 Rb2 22. c4 Qc5 23. Rec1 Bd8 24. Qe1 Bb6 {And now ...Ng4 would win.} 25. a5 Ba7 {aiming for ...Ng4.} 26. Be3 Qc7 {[#]} 27. c5 $1 $36 {[%mdl 2048] White is in control.} Bxc5 28. Bxc5 dxc5 29. Nd2 {[%cal Bf3d2,Bd2c4,Bc4b6][%mdl 32] Inhibits c4.} Ne8 30. Nc4 {Dodges Nd6} Rb5 31. Qc3 f6 $2 {Loses the game.} (31... Nf6 $16) 32. Qh3 $18 Ra8 33. Qe6+ Qf7 {[#]} 34. Qc6 Ra7 {[#]} 35. Nb6 {Against Qd7} Rc7 (35... Qf8 $142 36. Nc8 Rc7 37. Qe6+ Kh8) 36. Qa8 {Hoping for d6.} Ra7 37. Qc8 (37. Qb8 $142) 37... Rc7 $2 (37... Qf8 {might work better.} 38. Qe6+ Kh8) 38. Qxa6 Rb3 {Weighted Error Value: White=0.10 (very precise) /Black=0.26 (precise)} 1-0

[Event "Lliga Catalana DH 2023"]
[Site "Catalonia"]
[Date "2023.01.28"]
[Round "2.2"]
[White "Cuartas Medina, Jaime Alexander"]
[Black "Torrecillas Martinez, Antonio"]
[Result "1-0"]
[ECO "A48"]
[WhiteElo "2507"]
[BlackElo "2318"]
[Annotator "TA"]
[PlyCount "67"]
[EventDate "2023.01.24"]
[EventType "team-tourn"]
[EventCountry "ESP"]
[SourceTitle "playchess.com"]
[Source "ChessBase"]
[SourceQuality "1"]
[TimeControl "40/5400+30:1800+30"]

{[%evp 11,67,8,12,-10,0,0,0,-14,-9,-22,16,6,0,-10,71,74,76,79,70,73,64,60,64,60,64,66,73,68,83,69,70,41,36,40,79,71,80,70,70,77,60,65,61,3,0,0,18,21,21,21,704,646,974,912,29994,29995,29995,29996]} 1. d4 Nf6 2. Bf4 g6 3. Nf3 Bg7 4. e3 d6 5. h3 O-O 6. Be2 c5 {6...Nfd7 is setting a new trend.} 7. Nc3 {A48: 1 d4 Nf6 2 Nf3 g6: Torre, London and Colle Systems.} b6 8. d5 Na6 9. O-O {The position is equal.} Nc7 10. a4 a6 11. e4 Bb7 {[%cal Ob6b5] [#]} 12. Nd2 $146 {[#]} ({Predecessor:} 12. Qd3 Qd7 13. Nd2 Nh5 14. Bxh5 gxh5 15. Nc4 Qe8 16. Nxb6 Rb8 17. a5 Nb5 18. Nxb5 axb5 {1-0 Bourgault,J (1850)-Eacker,B W-ch WS/O/1137 email 2019}) 12... b5 13. axb5 $16 axb5 14. Rxa8 ({Weaker is} 14. Bxb5 Nh5 15. Bg5 (15. Rxa8 $2 Bxa8 16. Bg5 Bxc3 $17 {[%mdl 64] Remove Defender}) 15... Bxc3 16. Rxa8 Bxa8 $17) 14... Bxa8 15. Nxb5 Nxb5 16. Bxb5 Nh5 {Black is weak on the light squares} 17. Be3 Bxb2 18. Be2 Ng7 19. Nc4 Bf6 20. Qd2 Qb8 21. f4 Rd8 22. Qa5 e6 {[#]} 23. e5 $1 Be7 24. exd6 {White is much more active.} (24. Nxd6 {is more complex.} Bxd6 25. exd6 Rxd6 26. Bxc5 Rxd5 27. Bf3) 24... Bxd6 25. Nxd6 ({Don't play} 25. Bxc5 Bxc5+ 26. Qxc5 Bxd5 $15) 25... Rxd6 26. Bxc5 Rxd5 27. Ra1 ({Better is} 27. Bf3 $14 Rd8 28. Ba7) 27... Qc8 $11 28. Rd1 Rxd1+ (28... Rxc5 $5 29. Rd8+ $8 Ne8 30. Qxa8 Qxa8 31. Rxa8 Kf8 $11) 29. Bxd1 {This pair of bishops is nice.} h5 30. Bd4 {Qe5 is the strong threat.} Qb7 $2 {[%mdl 8192] Black cannot hold the game after this.} (30... Bd5 $11) 31. Bf3 Qb1+ 32. Kh2 {Threatening mate with Qd8+.} Bxf3 33. Qd8+ Kh7 34. Qf6 {Weighted Error Value: White=0.11 (very precise) /Black=0.35} (34. gxf3 $2 {is the wrong capture.} Qxc2+ 35. Kh1 Qd1+ 36. Kg2 e5 $19) 1-0